Cogmind - Beta 14 @@@ ROGUE MODE // 2024.08.19 @ 11:34:14 Player: KN-OKO Result: Destroyed by KZ-WXY(R) with Subdweller Beam Cannon Performance ------------- Evolutions (0) 0 Regions Visited (2) 400 Robots Destroyed (29) 145 Value Destroyed (562) 562 Prototype IDs (0) 0 Alien Tech Used (0) 0 Bonus (0) 0 TOTAL SCORE: 1107 Bonus ------- None Cogmind --------- Core Integrity 0/250 Matter 226/300 Energy 125/125 System Corruption 0% Temperature Cool (9) Movement Treading (240) Ox1 Location -10/Subcaves Parts ------- > --- POWER (1) -------- Light Ion Engine > --- PROPULSION (2) --- Light Treads Light Treads > --- UTILITY (2) ------ High-capacity Storage Unit Light Armor Plating > --- WEAPON (2) ------- Battle Rifle Battle Rifle > --- INVENTORY (20) --- Light Treads Light Treads Light Treads Wheel Wheel Compact Wheel Compact Wheel Improved Heat Sink Seismic Detector Light Armor Plating Particle Gun Assault Rifle Grenade Launcher Makeshift Hammer Peak State ------------ > --- POWER ------------ Light Nuclear Core > --- PROPULSION ------- Light Treads Light Treads > --- UTILITY ---------- High-capacity Storage Unit Seismic Detector > --- WEAPON ----------- Beam Cannon Makeshift Hammer > --- INVENTORY -------- Light Ion Engine Light Treads Light Treads Light Treads Light Treads Wheel Wheel Compact Wheel Compact Wheel Improved Heat Sink Light Armor Plating Light Armor Plating Light Armor Plating Light Armor Plating Particle Gun Beam Cannon Assault Rifle Assault Rifle Light Assault Rifle Grenade Launcher [Rating: 14] Favorites ----------- Power Light Nuclear Core Engine Ion Engine Power Core Light Nuclear Core Propulsion Light Treads Treads Light Treads Wheel Compact Wheel Utility Seismic Detector Device Seismic Detector Storage High-capacity Storage Unit Protection Light Armor Plating Weapon Beam Cannon Energy Cannon Beam Cannon Ballistic Gun Assault Rifle Launcher Grenade Launcher Impact Weapon Makeshift Hammer Build | -11 -10 -10 ------- Run | Yrd Mat Sub Slots Evolved . | . . . Power . | . . . Propulsion . | . . . Utility . | . . . Weapon . | . . . Parts Attached 37 | 7 14 16 Power 4 | 1 2 1 Engine 3 | 1 1 1 Core 1 | . 1 . Reactor . | . . . Propulsion 10 | 2 5 3 Treads 9 | 2 5 2 Leg . | . . . Wheel 1 | . . 1 Hover . | . . . Flight . | . . . Utility 12 | 2 5 5 Device 5 | 1 3 1 Storage 2 | 1 1 . Processor . | . . . Hackware . | . . . Protection 5 | . 1 4 Artifact . | . . . Weapon 11 | 2 2 7 Energy Gun . | . . . Energy Cannon 3 | . 1 2 Ballistic Gun 4 | 2 . 2 Ballistic Cannon . | . . . Launcher 1 | . . 1 Special Weapon . | . . . Impact Weapon 3 | . 1 2 Slashing Weapon . | . . . Piercing Weapon . | . . . Special Melee Weapon . | . . . Unidentified Prototypes . | . . . Parts Lost 6 | . . 6 Power 1 | . . 1 Propulsion 1 | . . 1 Utility 2 | . . 2 Weapon 2 | . . 2 Highest Loss Streak 6 | . . 6 To Critical Strikes . | . . . Average Slot Usage (%) 99 | . 99 99 Engine 2 | . 3 . Core 11 | . 10 13 Treads 27 | . 27 25 Device 12 | . 13 11 Storage 14 | . 14 14 Protection 1 | . . 2 Energy Cannon 13 | . 10 16 Ballistic Gun 9 | . 15 . Impact Weapon 5 | . 2 10 Peak Build Rating 14 | 7 12 14 Average Rating 10 | 5 9 12 On Entrance 6 | . 7 11 Naked Turns . | . . . Heaviest Build 54 | 15 51 54 Greatest Support 40 | 40 40 40 Greatest Overweight (x) 3 | . 1 3 Average Overweight (x) . | . . 1 Largest Inventory Capacity 20 | 8 20 20 Average Capacity 17 | 7 16 20 Most Carried 20 | 7 20 20 Average Carried 16 | 4 14 19 Final Capacity 20 | 8 20 20 Final Carried 20 | 6 20 14 Class Distribution -------------------- 100% | Mutant Dominant Class ---------------- Mutant | -10/Materials Mutant | -10/Subcaves Resources | -11 -10 -10 ----------- Run | Yrd Mat Sub Matter Collected 755 | 202 453 100 Remotely . | . . . Salvage Created 900 | 50 647 203 Parts 59 | 9 37 13 Haulers Intercepted 2 | . 2 . Recyclers Shooed 2 | 1 1 . Parts Field Recycled . | . . . Retrieved Matter . | . . . Parts Self-Destructed 13 | . . 13 Prevented . | . . . Kills | -11 -10 -10 ------- Run | Yrd Mat Sub Combat Hostiles Destroyed 16 | . 9 7 Guns 7 | . 7 . Cannons 7 | . 2 5 AOE 2 | . . 2 Classes Destroyed 10 | 2 6 2 Worker 2 | 1 1 . Builder 1 | . 1 . Tunneler 2 | 2 . . Hauler 2 | . 2 . Recycler 2 | . 2 . Turret 2 | . . 2 Watcher 2 | . 2 . Swarmer 7 | . 3 4 Grunt 6 | . 6 . Subdweller 3 | . . 3 Best Kill Streak 5 | 2 5 4 Combat Bots Only 5 | . 5 4 Max Kills in Single Turn 1 | 1 1 1 Gunslinging . | . . . Exploded 1 | . . 1 Melee . | . . . Uniques/NPCs Destroyed . | . . . Combat | -11 -10 -10 -------- Run | Yrd Mat Sub Hostile Shots Fired 132 | . 40 92 Missed 46 | . 9 37 Damage Taken 1312 | . 368 944 Core 257 | . 68 189 Absorbed by Shields . | . . . Core Remaining (%) 100 | 100 . . Volleys Fired 82 | 15 36 31 Largest 2 | 2 2 2 Hottest 120 | 40 80 120 Shots Fired 161 | 30 72 59 Gun 91 | 30 53 8 Cannon 68 | . 19 49 Launcher 2 | . . 2 Special . | . . . Kinetic 91 | 30 53 8 Thermal 68 | . 19 49 Explosive 2 | . . 2 Electromagnetic . | . . . Robot Hit Streak 30 | 8 10 30 Robot Miss Streak 2 | 2 2 2 Penetration Max . | . . . Secondary Targets . | . . . Shots Hit Robots 110 | 17 45 48 Core Hits 41 | 3 22 16 Critical Kills . | . . . Critical Parts Destroyed . | . . . Critical Strikes . | . . . Melee Attacks 43 | . 22 21 Impact 43 | . 22 21 Slashing . | . . . Piercing . | . . . Sneak Attacks 1 | . 1 . Combat Hostiles . | . . . Follow-up Attacks . | . . . Damage Inflicted 1939 | 197 712 1030 Guns 677 | 197 387 93 Cannons 899 | . 244 655 Explosions 71 | . . 71 Melee 273 | . 62 211 Ramming 19 | . 19 . Kinetic 677 | 197 387 93 Thermal 899 | . 244 655 Explosive 71 | . . 71 Electromagnetic . | . . . Impact 273 | . 62 211 Slashing . | . . . Piercing . | . . . Highest Corruption . | . . . Average Corruption . | . . . Corruption Purged . | . . . Corruption Blocked . | . . . Overload Shots . | . . . Overflow Damage 61 | . 42 19 Projectiles . | . . . Explosions . | . . . Melee 61 | . 42 19 Knockbacks 1 | . . 1 Impact 1 | . . 1 Kinetic . | . . . Secondary . | . . . Self-Inflicted Damage . | . . . Shots . | . . . Rammed 1 | . 1 . Targets Rammed 2 | . 2 . Kicked . | . . . Crushed 1 | . 1 . Highest Temperature 237 | . 237 90 Average Temperature 49 | . 65 31 Received Heat Transfer 459 | . 186 273 Siege Activations . | . . . Robots Corrupted 1 | . 1 . Combat Hostiles . | . . . Parts Fried 2 | . 2 . Impact Corruptions 3 | . 2 1 Robots Melted . | . . . Combat Hostiles . | . . . Parts Melted . | . . . Heat Transferred 1887 | . 518 1369 Parts Sabotaged . | . . . Parts Stolen . | . . . Parts Stripped . | . . . Power Chain Reactions . | . . . Alert | -11 -10 -10 ------- Run | Yrd Mat Sub Peak Influence 261 | 15 261 . Initial 9 | . 9 . Average 78 | 5 86 . Maximum Alert Level 1 | . 1 . Low Security (%) 89 | 100 88 . Level 1 10 | . 11 . Level 2 . | . . . Level 3 . | . . . Level 4 . | . . . Level 5 . | . . . High Security . | . . . Max Security . | . . . Squads Dispatched 1 | . 1 . Investigation . | . . . Extermination . | . . . Reinforcement 1 | . 1 . Assault . | . . . Garrison . | . . . Intercept . | . . . Searches Triggered . | . . . Construction Impeded . | . . . Haulers Reinforced . | . . . Active Scanning Responses . | . . . Cargo Convoy Interrupts . | . . . Stealth | -11 -10 -10 --------- Run | Yrd Mat Sub Distress Signals . | . . . Communications Jammed . | . . . Distress Signals . | . . . Times Spotted 32 | . 18 14 Peak Tracking Total 5 | . 5 4 Tactical Retreats 5 | . 1 4 Traps | -11 -10 -10 ------- Run | Yrd Mat Sub Traps Triggered 2 | . 2 . Indirectly . | . . . Trap Hack Attempts . | . . . Triggered . | . . . Disarmed . | . . . Reprogrammed . | . . . Reused . | . . . Traps Extracted . | . . . Installed . | . . . Triggered . | . . . Machines | -11 -10 -10 ---------- Run | Yrd Mat Sub Machines Disabled 1 | . . 1 Max in Single Turn 1 | . . 1 Machines Repaired . | . . . Machines Dismantled . | . . . Machines Sabotaged . | . . . Overloaded Fab Kills . | . . . Hacking | -11 -10 -10 --------- Run | Yrd Mat Sub Machines Accessed 3 | . 3 . Terminals 3 | . 3 . Fabricators . | . . . Repair Stations . | . . . Recycling Units . | . . . Scanalyzers . | . . . Garrison Access . | . . . Total Hacks 7 | . 7 . Successful 3 | . 3 . Failed 4 | . 4 . Catastrophic . | . . . Database Lockouts . | . . . Manual 6 | . 6 . Terminals 7 | . 7 . Fabricators . | . . . Repair Stations . | . . . Recycling Units . | . . . Scanalyzers . | . . . Garrison Access . | . . . Terminal Hacks . | . . . Fabricator Hacks . | . . . Repair Station Hacks . | . . . Recycling Unit Hacks . | . . . Scanalyzer . | . . . Garrison Access Hacks . | . . . Unauthorized Hacks 3 | . 3 . Terminals 3 | . 3 . Botnet 3 | . 3 . Fabricators . | . . . Repair Stations . | . . . Recycling Units . | . . . Scanalyzers . | . . . Garrison Access . | . . . Data Cores Recovered . | . . . Used . | . . . Hacking Detections 3 | . 3 . Full Trace Events . | . . . Feedback Events . | . . . Feedback Blocked . | . . . Robot Schematics Acquired . | . . . Robots Built . | . . . Authchips . | . . . Time . | . . . Total Robot Build Rating . | . . . Part Schematics Acquired . | . . . Parts Built . | . . . Authchips . | . . . Time . | . . . Total Part Build Rating . | . . . Parts Repaired . | . . . Time . | . . . Parts Recycled . | . . . Recycled Matter . | . . . Retrieved Matter . | . . . Retrieved Components . | . . . Parts Scanalyzed . | . . . Part Schematics Acquired . | . . . Parts Damaged . | . . . Bothacking | -11 -10 -10 ------------ Run | Yrd Mat Sub Used RIF Installer . | . . . Robots Hacked . | . . . Non-combat . | . . . Combat . | . . . Robot Hacks Applied . | . . . Relay Couplers Released . | . . . Fabnet Peak Effective % . | . . . Robots Rewired . | . . . Allies Hacked . | . . . Hacks Repelled . | . . . Allies | -11 -10 -10 -------- Run | Yrd Mat Sub Total Allies . | . . . Largest Group . | . . . Highest-Rated Group . | . . . Highest-Rated Ally . | . . . Total Orders . | . . . Ally Attacks . | . . . Total Damage . | . . . Kills . | . . . Allies Corrupted . | . . . Allies Melted . | . . . Intel | -11 -10 -10 ------- Run | Yrd Mat Sub Robot Analysis Total . | . . . Derelict Logs Recovered . | . . . Drone Launches . | . . . Drone Recoveries . | . . . Exploration | -11 -10 -10 ------------- Run | Yrd Mat Sub Turns Passed 2269 | 129 1299 841 Spaces Moved 819 | 44 477 298 Core 4 | 4 . . Treads 752 | 40 477 235 Legs . | . . . Wheels 63 | . . 63 Hover . | . . . Flight . | . . . Fastest Speed 50 | 50 160 145 Average Speed 213 | 150 211 225 Slowest Speed 320 | 160 240 320 Overloaded Moves . | . . . Propulsion Burnouts . | . . . Robots Hopped . | . . . Cave-ins Triggered . | . . . Exploration Rate (%) 35 | 6 71 28 Regions Visited 2 Branch Regions 1 Pre-discovered Areas . | . . . Known Exits Taken . | . . . Unknown Exits Taken 2 | 1 1 . Scrap Searched 1 | . . 1 Spaces Dug 7 | . 4 3 Terrain Destroyed 17 | . 4 13 Melee 7 | . 4 3 Projectile . | . . . AOE 10 | . . 10 Terrain Rammed . | . . . Walls Destroyed . | . . . Machines Disabled . | . . . Actions | -11 -10 -10 --------- Run | Yrd Mat Sub Total 1116 | 74 660 382 Wait 88 | 2 75 11 Move 817 | 43 476 298 Hop . | . . . Pick Up 30 | 7 21 2 Fast Attach 10 | 6 4 . Attach 7 | 1 . 6 Detach . | . . . Swap 20 | . 10 10 Drop 17 | . 14 3 Fire 82 | 15 36 31 Melee 43 | . 22 21 Ram . | . . . Kick . | . . . Crush 2 | . 2 . Escape Stasis . | . . . Rewire . | . . . Trap . | . . . Miscellaneous . | . . . Route ------- -11/Scrapyard -10/Materials (discovered 4 exits: [*Mat x2] / [*Min] / [*Sub]) -10/Subcaves (discovered 2 exits: [*Mat] / [*Rec]) History --------- Turn | Location | Event 5 | -11/Scrapyard | Discovered new exit (range 15) 130 | -11/Scrapyard | Entered Materials 309 | -10/Materials | Build established: Mutant 475 | -10/Materials | Discovered new exit (range 15) 827 | -10/Materials | Discovered new exit (range 16) 1053 | -10/Materials | Discovered new exit (range 14) 1424 | -10/Materials | Discovered new exit (range 3) 1429 | -10/Materials | Entered Subcaves 1441 | -10/Subcaves | Discovered new exit (range 5) 1579 | -10/Subcaves | Shifting Twisted Machinery released Mak. Hammer 1604 | -10/Subcaves | Shifting Twisted Machinery released Battle Rifle 1745 | -10/Subcaves | Shifting Twisted Machinery released Sub. Power Source 1801 | -10/Subcaves | A swath of the cavern ceiling suddenly collapsed 1925 | -10/Subcaves | Shifting Twisted Machinery released Flamer 1995 | -10/Subcaves | Discovered new exit (range 11) 2220 | -10/Subcaves | Core integrity fell below 50% 2230 | -10/Subcaves | Ambushed by Subdweller buried in earth 2261 | -10/Subcaves | Core integrity fell below 20% 2270 | -10/Subcaves | Destroyed by KZ-WXY(R) with Subdweller Beam Cannon Last Messages --------------- 02192_ Found Battle Rifle. 02192_ Found 66 Matter. 02193_ Acquired 14 matter. 02220_ Destroyed Sub. Machine Gun. 02220_ M2-VGX(R) system corrupted by crushing effect. 02224_ Subatomizers dissect the Battle Rifle. 02229_ QG-Q2S(R) knocked back. 02231_ KZ-WXY(R): "ARGHSUB!" 02234_ Subatomizers dissect the Battle Rifle, destroying it. 02234_ Lgt. Armor Plating destroyed. 02237_ QG-Q2S(R) destroyed. 02242_ Lgt. Nuclear Core destroyed. 02246_ Subatomizers dissect the Flamer. 02246_ Beam Cannon destroyed. 02250_ Lgt. Treads destroyed. 02258_ Subatomizers dissect the Flamer. 02258_ Lgt. Armor Plating destroyed. 02266_ Beam Cannon destroyed. Map ----- +----------------------------------------------------+ | ?????????????????????????????????????????????????? | | ?????????????????????????????????????????????????? | | ?????????????????????????????????????????????????? | | ?????????????????????????????????????????????????? | | ?????????????????????????????????????????????????? | | ?????????????????????????????????????????????????? | | ?????????????????????????????????????????????????? | | ?????????????????????????????????????????????????? | | ?????????????????????????????????????????????????? | | ?????????????????????????????????????????????????? | | ?????????????????????????????????????????????????? | | ?????????????????????????????????????????????????? | | ?????????????????????????????????????????????????? | | ?????????????????????????????????????????????????? | | ?????????????????????????????????????????????????? | | ?????????????????????????????????????????????????? | | ???????????????????? ????????????????????????????? | | ??????????????????? ???????????????????????????? | | ????????????????????"""??????????????????????????? | | ????????????????????#""??????????????????????????? | | ????????????????????#" ###???????????????????????? | | ????????????????????# ###?????????????????????? | | ????????????????????# * ##????????????????????? | | ????????????????????# %! #????????????????????? | | ?????????????????????# = ; #????????????????????? | | ?????????????????????##;;@ #????????????????????? | | ?????????????????????# ; R #????????????????????? | | ?????????????????????##; | #????????????????????? | | ??????????????????????#; % ##????????????????????? | | ?????????????????????## #?????????????????????? | | ???????????##???????## #####?????????????????????? | | ?????????## #??????## ##?????????????????????????? | | ?????????# ####???## ##??????????????????????????? | | ?????????## ##?## ##???????????????????????????? | | ?????????# # ### ##????????????????????????????? | | ?????????# # ##?????????????????????????????? | | ?????????## ## ##??????????????????????????????? | | ????????### ## #???????????????????????????????? | | ###?????# #???????????????????????????????? | | #?????# #???????????????????????????????? | | #???### ### ##???????????????????????????????? | | #???## #?####????????????????????????????????? | | #????# #?????????????????????????????????????? | | #????# #?????????????????????????????????????? | | ###?### #?????????????????????????????????????? | | ###! # #?????????????????????????????????????? | | %= #?????????????????????????????????????? | | ##?????????????????????????????????????? | | # ### #??????????????????????????????????????? | | #####? ####??????????????????????????????????????? | +----------------------------------------------------+ Best States ------------- Heat Dissipation 39 Energy Generation 14 Energy Capacity 250 Matter Stores 300 Matter Capacity 300 Sight Range 16 Terrain Scan Density 10 Armor Coverage 150 Evasion (%) 40 Recoil Reduction 2 Item Schematics ----------------- None Robot Schematics ------------------ None Fabricated ------------ Nothing Alien Tech Used ----------------- None Achievements -------------- None Challenges ------------ None Game ------ Seed SupersonicJunkScanner Manual? 0 Play Time 00:09:35 Cumulative 428.6 hours Start 2024.08.19 @ 11:24:58 End 2024.08.19 @ 11:34:14 Sessions 1 Manual Loads 0 Difficulty Rogue Special Mode None Game No. 301 Rogue 301 Adventurer 0 Explorer 0 Win Type - Total 38 Types 32/0/4/2/0/0/0/0/0 Lore% 70 Gallery% 83 Achievement% 71 Wizard Run 0 Options --------- Layout 1 ASCII 0 Keyboard 1 Movement Numpad Keybinds 0 Fullscreen 2 Font 32/SmallcapsGlow Map View 50x35 Zoom Use 0% Tactical HUD 1 Map Filters NONE Filters NONE Steam 1 RUN: 0e890da0-4192-477c-ac94-f2db5ac2cea2